[Event "Late-Titled-Tuesday-Blitz-February-13-2024"]
[Site "Chess.com"]
[Date "2024.02.13"]
[Round "10"]
[White "Konavets"]
[Black "Genghis_K"]
[Result "1-0"]
[WhiteElo "3028"]
[BlackElo "2915"]
[TimeControl "180+1"]
[EndTime "15:55:14 PST"]
[Termination "Konavets won on time"]

1. e4 {[%clk 0:03:00.9]} 1... c5 {[%clk 0:03:00.5]} 2. Nf3 {[%clk 0:03:01.5]}
2... d6 {[%clk 0:03:01.1]} 3. d4 {[%clk 0:03:01.9]} 3... cxd4 {[%clk 0:03:02]}
4. Nxd4 {[%clk 0:03:02.7]} 4... Nf6 {[%clk 0:03:02.6]} 5. Bd3 {[%clk 0:03:03.5]}
5... Nc6 {[%clk 0:02:57.9]} 6. Be3 {[%clk 0:03:03.7]} 6... Ng4 {[%clk 0:02:53]}
7. Nxc6 {[%clk 0:03:03.8]} 7... bxc6 {[%clk 0:02:53]} 8. Bd2 {[%clk 0:03:04.4]}
8... Ne5 {[%clk 0:02:49.3]} 9. Bc3 {[%clk 0:03:02.5]} 9... e6 {[%clk 0:02:42.2]}
10. O-O {[%clk 0:03:00.6]} 10... Be7 {[%clk 0:02:39.1]} 11. Be2 {[%clk
0:02:53.4]} 11... O-O {[%clk 0:02:37.2]} 12. Nd2 {[%clk 0:02:53.6]} 12... Bf6
{[%clk 0:02:30.2]} 13. Nb3 {[%clk 0:02:50.1]} 13... d5 {[%clk 0:02:26.6]} 14. f4
{[%clk 0:02:47.7]} 14... Ng6 {[%clk 0:02:22.2]} 15. Bxf6 {[%clk 0:02:46.3]}
15... Qxf6 {[%clk 0:02:20.5]} 16. e5 {[%clk 0:02:46.9]} 16... Qe7 {[%clk
0:01:59.8]} 17. Qd4 {[%clk 0:02:46.8]} 17... f6 {[%clk 0:01:54.2]} 18. Bd3
{[%clk 0:02:43.3]} 18... a5 {[%clk 0:01:50.5]} 19. Bxg6 {[%clk 0:02:09]} 19...
hxg6 {[%clk 0:01:49.6]} 20. Rfe1 {[%clk 0:02:09.4]} 20... Qb4 {[%clk 0:01:41.3]}
21. c3 {[%clk 0:02:07.4]} 21... Qb5 {[%clk 0:01:26.4]} 22. exf6 {[%clk
0:01:48.1]} 22... gxf6 {[%clk 0:01:26.3]} 23. Re3 {[%clk 0:01:47.2]} 23... Ba6
{[%clk 0:01:22.8]} 24. Rxe6 {[%clk 0:01:38.6]} 24... Rae8 {[%clk 0:01:18.9]} 25.
Rxe8 {[%clk 0:01:38.7]} 25... Rxe8 {[%clk 0:01:19.8]} 26. Qxf6 {[%clk
0:01:39.3]} 26... Qd3 {[%clk 0:01:18.5]} 27. h3 {[%clk 0:01:31.1]} 27... Re2
{[%clk 0:01:10.8]} 28. Qg5 {[%clk 0:01:28]} 28... Qe3+ {[%clk 0:01:07.9]} 29.
Kh2 {[%clk 0:01:23.5]} 29... Bd3 {[%clk 0:01:08.3]} 30. Nd4 {[%clk 0:01:22.2]}
30... Rxb2 {[%clk 0:01:07.9]} 31. Nxc6 {[%clk 0:00:55.7]} 31... Be4 {[%clk
0:01:02]} 32. Rg1 {[%clk 0:00:55.7]} 32... Qxc3 {[%clk 0:01:01.6]} 33. Qd8+
{[%clk 0:00:52.1]} 33... Kh7 {[%clk 0:00:57.9]} 34. Qh4+ {[%clk 0:00:48.1]}
34... Kg8 {[%clk 0:00:44.5]} 35. Qd8+ {[%clk 0:00:47.1]} 35... Kh7 {[%clk
0:00:44.2]} 36. Ne5 {[%clk 0:00:47.6]} 36... Rxa2 {[%clk 0:00:19.9]} 37. Qe7+
{[%clk 0:00:46.1]} 37... Kg8 {[%clk 0:00:18.4]} 38. Qf7+ {[%clk 0:00:39.8]}
38... Kh8 {[%clk 0:00:18.1]} 39. Qf8+ {[%clk 0:00:36.6]} 39... Kh7 {[%clk
0:00:18.6]} 40. Qf7+ {[%clk 0:00:20.8]} 40... Kh8 {[%clk 0:00:18.5]} 41. Nxg6+
{[%clk 0:00:21.4]} 41... Bxg6 {[%clk 0:00:17.5]} 42. Qxg6 {[%clk 0:00:22.3]}
42... Qe3 {[%clk 0:00:12.8]} 43. Qh6+ {[%clk 0:00:21.2]} 43... Kg8 {[%clk
0:00:13.1]} 44. Qg5+ {[%clk 0:00:22.1]} 44... Kh8 {[%clk 0:00:12]} 45. Rb1
{[%clk 0:00:19.5]} 45... Qe8 {[%clk 0:00:04.2]} 46. Rb7 {[%clk 0:00:18.7]} 1-0

[Event "Late-Titled-Tuesday-Blitz-February-13-2024"]
[Site "Chess.com"]
[Date "2024.02.13"]
[Round "10"]
[White "Jaka_Brilej"]
[Black "KNVB"]
[Result "0-1"]
[WhiteElo "2534"]
[BlackElo "2831"]
[TimeControl "180+1"]
[EndTime "15:55:14 PST"]
[Termination "KNVB won by resignation"]

1. e4 {[%clk 0:03:00.9]} 1... b6 {[%clk 0:02:59.8]} 2. d4 {[%clk 0:03:00.4]}
2... Bb7 {[%clk 0:03:00.3]} 3. Bd3 {[%clk 0:03:01]} 3... e6 {[%clk 0:03:01]} 4.
Nf3 {[%clk 0:03:01.1]} 4... d5 {[%clk 0:03:01.5]} 5. exd5 {[%clk 0:03:01.2]}
5... Qxd5 {[%clk 0:03:02.4]} 6. O-O {[%clk 0:02:56]} 6... Nf6 {[%clk 0:03:02.5]}
7. Nc3 {[%clk 0:02:53.8]} 7... Qh5 {[%clk 0:03:02.5]} 8. Ne5 {[%clk 0:02:50.8]}
8... Qxd1 {[%clk 0:03:03.4]} 9. Rxd1 {[%clk 0:02:51]} 9... Nbd7 {[%clk
0:03:04.1]} 10. Bb5 {[%clk 0:02:46.2]} 10... a6 {[%clk 0:03:04.3]} 11. Bc6
{[%clk 0:02:46.5]} 11... Bxc6 {[%clk 0:03:04.8]} 12. Nxc6 {[%clk 0:02:47.4]}
12... Nb8 {[%clk 0:03:05.7]} 13. Nxb8 {[%clk 0:02:40.1]} 13... Rxb8 {[%clk
0:03:06.6]} 14. Bf4 {[%clk 0:02:39.6]} 14... Bd6 {[%clk 0:03:07.1]} 15. Be5
{[%clk 0:02:31.6]} 15... Bxe5 {[%clk 0:03:05.7]} 16. dxe5 {[%clk 0:02:31.6]}
16... Nd7 {[%clk 0:03:06.6]} 17. f4 {[%clk 0:02:31.4]} 17... Ke7 {[%clk
0:03:06.4]} 18. Kf2 {[%clk 0:02:31.5]} 18... Rbd8 {[%clk 0:02:51.9]} 19. Ke3
{[%clk 0:02:26.6]} 19... h5 {[%clk 0:02:51.3]} 20. Rd4 {[%clk 0:02:23.8]} 20...
Nb8 {[%clk 0:02:51.1]} 21. Rad1 {[%clk 0:02:22.7]} 21... Rxd4 {[%clk 0:02:51]}
22. Rxd4 {[%clk 0:02:22.5]} 22... Nc6 {[%clk 0:02:51.7]} 23. Rd2 {[%clk
0:02:20.9]} 23... Rb8 {[%clk 0:02:41.4]} 24. Ne2 {[%clk 0:02:16.6]} 24... Nb4
{[%clk 0:02:39]} 25. Nd4 {[%clk 0:02:11.5]} 25... Ke8 {[%clk 0:02:25]} 26. a3
{[%clk 0:02:05.4]} 26... Nd5+ {[%clk 0:02:25.1]} 27. Ke4 {[%clk 0:02:06]} 27...
Ne7 {[%clk 0:02:16.3]} 28. h3 {[%clk 0:01:56]} 28... h4 {[%clk 0:02:04.6]} 29.
f5 {[%clk 0:01:36.9]} 29... c5 {[%clk 0:02:04.2]} 30. f6 {[%clk 0:01:33]} 30...
gxf6 {[%clk 0:01:42.8]} 31. exf6 {[%clk 0:01:32.6]} 31... cxd4 {[%clk
0:01:12.1]} 32. fxe7 {[%clk 0:01:32.6]} 32... Kxe7 {[%clk 0:01:13]} 33. Rxd4
{[%clk 0:01:31.7]} 33... Rg8 {[%clk 0:01:13.5]} 34. Rd2 {[%clk 0:01:30.1]} 34...
Rg3 {[%clk 0:00:57.9]} 35. c4 {[%clk 0:01:27.2]} 35... f5+ {[%clk 0:00:58.6]}
36. Kd4 {[%clk 0:01:21.1]} 36... Kd6 {[%clk 0:00:56.7]} 37. Re2 {[%clk
0:01:15.2]} 37... a5 {[%clk 0:00:42.2]} 38. b4 {[%clk 0:00:55.9]} 38... Rxa3
{[%clk 0:00:34.7]} 39. c5+ {[%clk 0:00:56.2]} 39... bxc5+ {[%clk 0:00:24.2]} 40.
bxc5+ {[%clk 0:00:57.1]} 40... Kd7 {[%clk 0:00:24.4]} 41. Rb2 {[%clk 0:00:53.9]}
41... Ra4+ {[%clk 0:00:20.2]} 42. Ke5 {[%clk 0:00:49.8]} 42... Re4+ {[%clk
0:00:19.4]} 43. Kf6 {[%clk 0:00:50.6]} 43... Kc6 {[%clk 0:00:19.8]} 44. Ra2
{[%clk 0:00:47.7]} 44... a4 {[%clk 0:00:19.4]} 45. Rc2 {[%clk 0:00:46.2]} 45...
a3 {[%clk 0:00:04.6]} 46. Ra2 {[%clk 0:00:46]} 46... Ra4 {[%clk 0:00:04]} 47.
Kxe6 {[%clk 0:00:46.1]} 47... Kxc5 {[%clk 0:00:04.1]} 48. Kxf5 {[%clk
0:00:40.8]} 48... Kc4 {[%clk 0:00:04.6]} 49. Rf2 {[%clk 0:00:38.7]} 49... a2
{[%clk 0:00:03.8]} 50. Rf4+ {[%clk 0:00:31.5]} 50... Kb5 {[%clk 0:00:04.3]} 51.
Rf1 {[%clk 0:00:31.4]} 51... a1=Q {[%clk 0:00:04.5]} 52. Rxa1 {[%clk 0:00:32.1]}
52... Rxa1 {[%clk 0:00:05.4]} 53. Kg4 {[%clk 0:00:32.6]} 53... Ra4+ {[%clk
0:00:06.1]} 54. Kg5 {[%clk 0:00:33]} 54... Kc6 {[%clk 0:00:07]} 55. Kh5 {[%clk
0:00:33.4]} 55... Kd7 {[%clk 0:00:07.5]} 0-1

[Event "Late-Titled-Tuesday-Blitz-February-13-2024"]
[Site "Chess.com"]
[Date "2024.02.13"]
[Round "10"]
[White "gahryman"]
[Black "Kotlyar_K"]
[Result "0-1"]
[WhiteElo "2682"]
[BlackElo "2541"]
[TimeControl "180+1"]
[EndTime "15:55:14 PST"]
[Termination "Kotlyar_K won on time"]

1. e4 {[%clk 0:03:00.9]} 1... c6 {[%clk 0:02:59.8]} 2. d4 {[%clk 0:02:59.2]}
2... d5 {[%clk 0:02:59.9]} 3. e5 {[%clk 0:02:59.9]} 3... Bf5 {[%clk 0:02:59.5]}
4. Nf3 {[%clk 0:03:00.3]} 4... e6 {[%clk 0:02:59.4]} 5. c3 {[%clk 0:03:01]} 5...
Nd7 {[%clk 0:02:58.7]} 6. Be2 {[%clk 0:02:59.6]} 6... a6 {[%clk 0:02:57.3]} 7.
O-O {[%clk 0:02:58.3]} 7... h6 {[%clk 0:02:57.9]} 8. a4 {[%clk 0:02:52.8]} 8...
c5 {[%clk 0:02:56.5]} 9. Na3 {[%clk 0:02:30.1]} 9... Ne7 {[%clk 0:02:52.2]} 10.
dxc5 {[%clk 0:02:23.9]} 10... Nxc5 {[%clk 0:02:53.1]} 11. Nd4 {[%clk 0:02:23.4]}
11... Bh7 {[%clk 0:02:50.1]} 12. Be3 {[%clk 0:01:34.6]} 12... Rc8 {[%clk
0:02:37.2]} 13. Nac2 {[%clk 0:01:33.2]} 13... Nc6 {[%clk 0:02:29.1]} 14. Nxc6
{[%clk 0:01:32.4]} 14... Rxc6 {[%clk 0:02:30]} 15. Nd4 {[%clk 0:01:32.1]} 15...
Rc8 {[%clk 0:02:29.7]} 16. Bh5 {[%clk 0:01:30.1]} 16... Be7 {[%clk 0:02:04.7]}
17. b4 {[%clk 0:01:06.6]} 17... Ne4 {[%clk 0:02:01.2]} 18. Nxe6 {[%clk 0:01:05]}
18... Qd7 {[%clk 0:01:30.1]} 19. Nxg7+ {[%clk 0:01:04.8]} 19... Kf8 {[%clk
0:01:19.7]} 20. Bg4 {[%clk 0:00:44.2]} 20... Qc7 {[%clk 0:01:13.4]} 21. Bxh6
{[%clk 0:00:39.2]} 21... Kg8 {[%clk 0:01:03.6]} 22. Ne6 {[%clk 0:00:23.5]} 22...
Qxe5 {[%clk 0:00:37.6]} 23. Bg7 {[%clk 0:00:20.5]} 23... Qd6 {[%clk 0:00:37.9]}
24. Bxh8 {[%clk 0:00:18.9]} 24... Kxh8 {[%clk 0:00:38.8]} 25. Nd4 {[%clk
0:00:17.7]} 25... Bf6 {[%clk 0:00:30.8]} 26. Bxc8 {[%clk 0:00:16.6]} 26... Nxc3
{[%clk 0:00:30.3]} 27. Qd3 {[%clk 0:00:16]} 27... Bxd3 {[%clk 0:00:29.9]} 28.
Nf3 {[%clk 0:00:13.9]} 28... Ne2+ {[%clk 0:00:27]} 29. Kh1 {[%clk 0:00:14.2]}
29... Bxa1 {[%clk 0:00:27.6]} 30. Rxa1 {[%clk 0:00:14.8]} 30... Qxb4 {[%clk
0:00:26.1]} 31. Rd1 {[%clk 0:00:13.2]} 31... Qb3 {[%clk 0:00:24.5]} 32. Re1
{[%clk 0:00:11.8]} 32... Qc3 {[%clk 0:00:24.4]} 33. Bg4 {[%clk 0:00:10.1]} 33...
Nd4 {[%clk 0:00:24.5]} 34. Rg1 {[%clk 0:00:08.8]} 34... Nxf3 {[%clk 0:00:23]}
35. Bxf3 {[%clk 0:00:09.7]} 35... Be4 {[%clk 0:00:23.4]} 36. Bxe4 {[%clk
0:00:08.4]} 36... dxe4 {[%clk 0:00:24.3]} 37. Rb1 {[%clk 0:00:07.8]} 37... Qd2
{[%clk 0:00:23.2]} 38. Kg1 {[%clk 0:00:06.7]} 38... e3 {[%clk 0:00:23.6]} 39.
fxe3 {[%clk 0:00:07]} 39... Qxe3+ {[%clk 0:00:24.5]} 40. Kh1 {[%clk 0:00:07.5]}
40... Qe4 {[%clk 0:00:24.4]} 41. Ra1 {[%clk 0:00:07.2]} 41... Qd4 {[%clk
0:00:24.7]} 42. Rf1 {[%clk 0:00:06.3]} 42... Qxa4 {[%clk 0:00:24.6]} 43. h3
{[%clk 0:00:06.1]} 43... Kg7 {[%clk 0:00:25]} 44. Rf3 {[%clk 0:00:05.6]} 44...
Qb5 {[%clk 0:00:25.3]} 0-1

[Event "Late-Titled-Tuesday-Blitz-February-13-2024"]
[Site "Chess.com"]
[Date "2024.02.13"]
[Round "10"]
[White "jcmesafischer"]
[Black "GlavkonVVS"]
[Result "0-1"]
[WhiteElo "2385"]
[BlackElo "2570"]
[TimeControl "180+1"]
[EndTime "15:55:14 PST"]
[Termination "GlavkonVVS won on time"]

1. e4 {[%clk 0:02:59.5]} 1... Nf6 {[%clk 0:02:59.9]} 2. e5 {[%clk 0:02:54.5]}
2... Nd5 {[%clk 0:02:59.7]} 3. d4 {[%clk 0:02:54.2]} 3... d6 {[%clk 0:02:59.8]}
4. Nf3 {[%clk 0:02:54.8]} 4... Bg4 {[%clk 0:02:59.2]} 5. h3 {[%clk 0:02:54.9]}
5... Bh5 {[%clk 0:02:59.1]} 6. e6 {[%clk 0:02:54.6]} 6... fxe6 {[%clk
0:02:58.3]} 7. g4 {[%clk 0:02:55.1]} 7... Bf7 {[%clk 0:02:56.9]} 8. c4 {[%clk
0:02:53.8]} 8... Nb6 {[%clk 0:02:56.3]} 9. Bg2 {[%clk 0:02:49.9]} 9... Nc6
{[%clk 0:02:54.1]} 10. Ng5 {[%clk 0:02:39.8]} 10... Bg8 {[%clk 0:02:53.9]} 11.
Be3 {[%clk 0:02:30.8]} 11... Nxc4 {[%clk 0:02:52]} 12. Bxc6+ {[%clk 0:02:27.2]}
12... bxc6 {[%clk 0:02:50.9]} 13. Qa4 {[%clk 0:02:27.6]} 13... Nb6 {[%clk
0:02:35.7]} 14. Qxc6+ {[%clk 0:02:20]} 14... Qd7 {[%clk 0:02:35.9]} 15. Qe4
{[%clk 0:02:18.6]} 15... O-O-O {[%clk 0:02:23.6]} 16. Nc3 {[%clk 0:02:12.5]}
16... h6 {[%clk 0:02:21.8]} 17. Nf3 {[%clk 0:01:37.2]} 17... Bh7 {[%clk
0:02:10.5]} 18. Qf4 {[%clk 0:01:37.2]} 18... g5 {[%clk 0:02:07.4]} 19. Qg3
{[%clk 0:01:36.6]} 19... Bg7 {[%clk 0:02:02.6]} 20. Rc1 {[%clk 0:01:34]} 20...
Rhf8 {[%clk 0:02:00.7]} 21. O-O {[%clk 0:01:32.4]} 21... Qc6 {[%clk 0:01:50.3]}
22. Nd2 {[%clk 0:00:41.7]} 22... e5 {[%clk 0:01:34]} 23. d5 {[%clk 0:00:26.8]}
23... Nxd5 {[%clk 0:01:25.6]} 24. Qg2 {[%clk 0:00:21.5]} 24... e6 {[%clk
0:01:12.4]} 25. Nb3 {[%clk 0:00:14.9]} 25... Nb4 {[%clk 0:01:01.4]} 26. Qxc6
{[%clk 0:00:09.7]} 26... Nxc6 {[%clk 0:01:01.2]} 27. Nb5 {[%clk 0:00:09.6]}
27... Kd7 {[%clk 0:01:01]} 28. Rfd1 {[%clk 0:00:05.5]} 28... Rc8 {[%clk
0:00:48.5]} 29. Nc5+ {[%clk 0:00:05.2]} 29... Ke7 {[%clk 0:00:48.5]} 30. Na6
{[%clk 0:00:05.6]} 30... Be4 {[%clk 0:00:44.6]} 31. Naxc7 {[%clk 0:00:05.2]}
31... Rfd8 {[%clk 0:00:36.6]} 32. Na6 {[%clk 0:00:04.8]} 32... Nd4 {[%clk
0:00:32.6]} 33. Nxd4 {[%clk 0:00:04.1]} 33... exd4 {[%clk 0:00:32.4]} 34. Rxc8
{[%clk 0:00:04.5]} 34... Rxc8 {[%clk 0:00:31.7]} 35. Bxd4 {[%clk 0:00:04.9]}
35... Bxd4 {[%clk 0:00:30.7]} 36. Rxd4 {[%clk 0:00:05.3]} 36... Rc1+ {[%clk
0:00:31.2]} 37. Kh2 {[%clk 0:00:05]} 37... Bb7 {[%clk 0:00:27.3]} 38. Nb4 {[%clk
0:00:02.8]} 38... e5 {[%clk 0:00:25.8]} 39. Rd3 {[%clk 0:00:01.8]} 39... Rh1+
{[%clk 0:00:24.3]} 40. Kg3 {[%clk 0:00:02]} 40... Rg1+ {[%clk 0:00:24.7]} 41.
Kh2 {[%clk 0:00:02.5]} 41... Rg2+ {[%clk 0:00:25.2]} 42. Kh1 {[%clk 0:00:03.1]}
42... Rxf2+ {[%clk 0:00:24.3]} 43. Kg1 {[%clk 0:00:03.7]} 43... Rg2+ {[%clk
0:00:24.4]} 44. Kf1 {[%clk 0:00:03.7]} 44... Rxb2 {[%clk 0:00:25]} 45. a3 {[%clk
0:00:03.6]} 45... a5 {[%clk 0:00:24.5]} 46. Nd5+ {[%clk 0:00:02.4]} 46... Ke6
{[%clk 0:00:24.2]} 47. Ne3 {[%clk 0:00:02.7]} 47... Ba6 {[%clk 0:00:23.8]} 0-1

[Event "Late-Titled-Tuesday-Blitz-February-13-2024"]
[Site "Chess.com"]
[Date "2024.02.13"]
[Round "10"]
[White "azikom"]
[Black "delqate"]
[Result "1-0"]
[WhiteElo "2684"]
[BlackElo "2497"]
[TimeControl "180+1"]
[EndTime "15:55:17 PST"]
[Termination "azikom won on time"]

1. d4 {[%clk 0:02:59.4]} 1... d5 {[%clk 0:02:59.8]} 2. Nf3 {[%clk 0:02:58.8]}
2... Nf6 {[%clk 0:02:59.2]} 3. Bf4 {[%clk 0:02:59.2]} 3... c5 {[%clk 0:02:59.1]}
4. e3 {[%clk 0:02:59.5]} 4... Nc6 {[%clk 0:02:59.4]} 5. Nbd2 {[%clk 0:02:59.9]}
5... Bg4 {[%clk 0:02:53.4]} 6. c3 {[%clk 0:02:57.6]} 6... e6 {[%clk 0:02:52.9]}
7. h3 {[%clk 0:02:55.2]} 7... Bh5 {[%clk 0:02:52.6]} 8. Be2 {[%clk 0:02:55.1]}
8... Qb6 {[%clk 0:02:47.2]} 9. Qb3 {[%clk 0:02:52.5]} 9... c4 {[%clk 0:02:45.2]}
10. Qc2 {[%clk 0:02:45.5]} 10... Bg6 {[%clk 0:02:44.5]} 11. Qc1 {[%clk
0:02:45.3]} 11... Be7 {[%clk 0:02:37]} 12. O-O {[%clk 0:02:45.7]} 12... O-O
{[%clk 0:02:35.7]} 13. b3 {[%clk 0:02:45.4]} 13... cxb3 {[%clk 0:02:24.3]} 14.
axb3 {[%clk 0:02:46.3]} 14... Rfc8 {[%clk 0:02:23.2]} 15. Qb2 {[%clk 0:02:44.7]}
15... a5 {[%clk 0:02:22.6]} 16. Rfc1 {[%clk 0:02:43.5]} 16... h6 {[%clk
0:02:13.6]} 17. Ne5 {[%clk 0:02:41.6]} 17... Nxe5 {[%clk 0:02:12.4]} 18. Bxe5
{[%clk 0:02:42.5]} 18... Ne4 {[%clk 0:02:03.1]} 19. Nxe4 {[%clk 0:02:35.9]}
19... Bxe4 {[%clk 0:02:04]} 20. Bf1 {[%clk 0:02:27.9]} 20... Rc6 {[%clk
0:01:50.2]} 21. Qa2 {[%clk 0:02:18.3]} 21... f6 {[%clk 0:01:32.5]} 22. Bg3
{[%clk 0:02:17]} 22... Rac8 {[%clk 0:01:32.5]} 23. c4 {[%clk 0:02:13.8]} 23...
Bb4 {[%clk 0:01:26.4]} 24. c5 {[%clk 0:02:02.7]} 24... Qd8 {[%clk 0:01:11]} 25.
Bb5 {[%clk 0:02:01.6]} 25... h5 {[%clk 0:01:01.6]} 26. Bxc6 {[%clk 0:01:59]}
26... bxc6 {[%clk 0:01:02.5]} 27. f3 {[%clk 0:01:56.7]} 27... Bh7 {[%clk
0:01:00.3]} 28. Be1 {[%clk 0:01:55.7]} 28... Rb8 {[%clk 0:00:49.8]} 29. Bxb4
{[%clk 0:01:53.9]} 29... axb4 {[%clk 0:00:50.4]} 30. Qa7 {[%clk 0:01:49.8]}
30... Bd3 {[%clk 0:00:48.3]} 31. Ra2 {[%clk 0:01:41.1]} 31... h4 {[%clk
0:00:47]} 32. Rca1 {[%clk 0:01:39.4]} 32... Kh7 {[%clk 0:00:36.8]} 33. Qf7
{[%clk 0:01:35.6]} 33... Qe8 {[%clk 0:00:31.6]} 34. Ra7 {[%clk 0:01:30.4]} 34...
Qxf7 {[%clk 0:00:26.4]} 35. Rxf7 {[%clk 0:01:31.3]} 35... Kh6 {[%clk 0:00:15.6]}
36. Re7 {[%clk 0:01:29.6]} 36... e5 {[%clk 0:00:12.5]} 37. dxe5 {[%clk
0:01:26.8]} 37... fxe5 {[%clk 0:00:13.4]} 38. Rxe5 {[%clk 0:01:27.1]} 38... Rb5
{[%clk 0:00:13.6]} 39. Re6+ {[%clk 0:01:23.1]} 39... Kg5 {[%clk 0:00:12.2]} 40.
Rxc6 {[%clk 0:01:23.5]} 40... Bc2 {[%clk 0:00:11.6]} 41. Rb6 {[%clk 0:01:14.8]}
41... Rxc5 {[%clk 0:00:11.4]} 42. Rxb4 {[%clk 0:01:14.5]} 42... Rc3 {[%clk
0:00:09.7]} 43. Kf2 {[%clk 0:01:13]} 43... Bxb3 {[%clk 0:00:08.8]} 44. Rg4+
{[%clk 0:01:08.9]} 44... Kh5 {[%clk 0:00:04.9]} 45. Rxg7 {[%clk 0:01:07.3]}
45... Rc2+ {[%clk 0:00:03.3]} 46. Kg1 {[%clk 0:01:06.9]} 46... Bc4 {[%clk
0:00:03.7]} 47. Ra8 {[%clk 0:01:03.3]} 47... Rc1+ {[%clk 0:00:03.4]} 48. Kh2
{[%clk 0:01:02.1]} 48... Kh6 {[%clk 0:00:04.3]} 49. Rg4 {[%clk 0:01:01]} 49...
Kh7 {[%clk 0:00:04.4]} 50. Ra7+ {[%clk 0:00:59.8]} 50... Kh6 {[%clk 0:00:03.6]}
51. Rxh4+ {[%clk 0:00:59.7]} 51... Kg6 {[%clk 0:00:03.9]} 52. Rg4+ {[%clk
0:00:59.7]} 52... Kf6 {[%clk 0:00:04.3]} 53. Rh7 {[%clk 0:00:57.8]} 53... Rd1
{[%clk 0:00:03.9]} 54. Rf4+ {[%clk 0:00:56.7]} 54... Ke6 {[%clk 0:00:03.8]} 55.
Rh6+ {[%clk 0:00:56.5]} 55... Ke5 {[%clk 0:00:03.5]} 56. Rf8 {[%clk 0:00:54.2]}
56... Re1 {[%clk 0:00:02.8]} 57. h4 {[%clk 0:00:53.5]} 1-0

[Event "Late-Titled-Tuesday-Blitz-February-13-2024"]
[Site "Chess.com"]
[Date "2024.02.13"]
[Round "10"]
[White "lucliasco"]
[Black "Goryachkina"]
[Result "1-0"]
[WhiteElo "2852"]
[BlackElo "2708"]
[TimeControl "180+1"]
[EndTime "15:55:18 PST"]
[Termination "lucliasco won on time"]

1. e4 {[%clk 0:03:00.9]} 1... c5 {[%clk 0:02:59.9]} 2. Nc3 {[%clk 0:03:00.6]}
2... e6 {[%clk 0:02:59.8]} 3. d4 {[%clk 0:03:00.3]} 3... cxd4 {[%clk 0:02:59.7]}
4. Qxd4 {[%clk 0:03:00]} 4... Nc6 {[%clk 0:02:59.7]} 5. Qd3 {[%clk 0:02:59.9]}
5... a6 {[%clk 0:02:58.7]} 6. Bf4 {[%clk 0:03:00.4]} 6... b5 {[%clk 0:02:54.8]}
7. O-O-O {[%clk 0:03:00.6]} 7... Nf6 {[%clk 0:02:53.7]} 8. e5 {[%clk 0:02:57.7]}
8... Qc7 {[%clk 0:02:53.1]} 9. Qf3 {[%clk 0:02:49.8]} 9... Ng8 {[%clk
0:02:34.8]} 10. Qg3 {[%clk 0:02:46.9]} 10... Nge7 {[%clk 0:02:30]} 11. Bd3
{[%clk 0:02:42.5]} 11... Bb7 {[%clk 0:02:23.6]} 12. Nf3 {[%clk 0:02:39.3]} 12...
Nb4 {[%clk 0:02:12.6]} 13. Kb1 {[%clk 0:02:33.6]} 13... Nxd3 {[%clk 0:02:09.2]}
14. cxd3 {[%clk 0:02:33.5]} 14... Nf5 {[%clk 0:02:09.2]} 15. Qh3 {[%clk
0:02:31.7]} 15... Qa5 {[%clk 0:01:46.9]} 16. g4 {[%clk 0:02:27.2]} 16... Ne7
{[%clk 0:01:45.2]} 17. Ne4 {[%clk 0:02:26.2]} 17... Ng6 {[%clk 0:01:10.6]} 18.
Bd2 {[%clk 0:02:24.7]} 18... b4 {[%clk 0:01:10.5]} 19. Rhe1 {[%clk 0:02:17.5]}
19... Bd5 {[%clk 0:01:09.7]} 20. b3 {[%clk 0:02:12.8]} 20... Qb5 {[%clk
0:01:09.9]} 21. Nd4 {[%clk 0:02:09.9]} 21... Qb7 {[%clk 0:01:05.6]} 22. f4
{[%clk 0:02:07.8]} 22... a5 {[%clk 0:01:02.2]} 23. f5 {[%clk 0:02:06.8]} 23...
Nxe5 {[%clk 0:01:01.2]} 24. Bf4 {[%clk 0:02:06.6]} 24... f6 {[%clk 0:00:41.3]}
25. Bxe5 {[%clk 0:01:49.8]} 25... fxe5 {[%clk 0:00:40.7]} 26. fxe6 {[%clk
0:01:50.6]} 26... dxe6 {[%clk 0:00:18.4]} 27. Qh5+ {[%clk 0:01:46.3]} 27... Kd8
{[%clk 0:00:14.7]} 28. Qxe5 {[%clk 0:01:47.2]} 28... a4 {[%clk 0:00:06.7]} 29.
Nxe6+ {[%clk 0:01:45.9]} 29... Bxe6 {[%clk 0:00:06.8]} 30. Qxe6 {[%clk
0:01:46.8]} 30... axb3 {[%clk 0:00:06.9]} 31. axb3 {[%clk 0:01:32.8]} 31... Be7
{[%clk 0:00:04.6]} 32. Rc1 {[%clk 0:00:35.1]} 32... Ra6 {[%clk 0:00:04.4]} 33.
Qc4 {[%clk 0:00:28]} 33... Ra5 {[%clk 0:00:01.9]} 34. d4 {[%clk 0:00:13.1]}
34... Re8 {[%clk 0:00:02.1]} 35. Nc5 {[%clk 0:00:13.3]} 35... Bxc5 {[%clk
0:00:02.5]} 36. Rxe8+ {[%clk 0:00:13.6]} 36... Kxe8 {[%clk 0:00:03.1]} 37. dxc5
{[%clk 0:00:14]} 37... Qa7 {[%clk 0:00:02.3]} 38. Re1+ {[%clk 0:00:14.1]} 38...
Kf8 {[%clk 0:00:02.6]} 39. Rf1+ {[%clk 0:00:11.8]} 39... Ke8 {[%clk 0:00:02.6]}
40. Qg8+ {[%clk 0:00:11.7]} 1-0